fUST/lending_fUST_20251208
["ID","MTS","AMOUNT","RATE_DAILY","PERIOD"]
[397157341,1765153838963,-961.81,0.00010132,2]
[397157343,1765153838973,-500.0,0.00010132,2]
[397157345,1765153838982,-500.0,0.00010132,2]
[397157370,1765153839173,-500.0,0.00010132,2]
[397157374,1765153839245,-500.0,0.00010132,2]
[397157376,1765153839255,-500.0,0.00010132,2]
[397157379,1765153839264,-521.72,0.00010132,2]
[397157380,1765153839274,-500.33409523,0.00010168,2]
[397157382,1765153839283,-216.80585996,0.00010168,2]
[397157385,1765153839292,-325.50663819,0.00010168,2]
[397157387,1765153839302,-501.12628878,0.00010168,2]
[397157389,1765153839312,-500.0,0.00010168,2]
[397157390,1765153839321,-1601.04,0.00010168,2]
[397157393,1765153839330,-10595.96,0.00010168,2]
[397157395,1765153839339,-661.99,0.00010168,2]
[397157396,1765153839348,-1725.78,0.00010168,2]
[397157399,1765153839358,-500.0,0.00010169,2]
[397157400,1765153839367,-500.37277728,0.00010169,2]
[397157403,1765153839376,-885.95,0.00010169,2]
[397157404,1765153839386,-500.0,0.00010169,2]
[397157407,1765153839395,-2299.79,0.00010169,2]
[397157408,1765153839406,-2254.91,0.00010169,2]
[397157411,1765153839415,-654.36,0.00010169,2]
[397157412,1765153839425,-2177.96,0.00010169,2]
[397157414,1765153839435,-1887.02,0.00010169,2]
[397157416,1765153839445,-974.95,0.00010169,2]
[397157419,1765153839455,-808.23,0.00010169,2]
[397157421,1765153839464,-8630.89,0.00010169,2]
[397157423,1765153839474,-678.7,0.00010169,2]
[397157425,1765153839483,-500.0,0.00010169,2]
[397157426,1765153839492,-500.0,0.00010169,2]
[397157428,1765153839502,-1393.08,0.00010169,2]
[397157431,1765153839511,-1429.0,0.00010169,2]
[397157432,1765153839521,-786.94,0.00010169,2]
[397157434,1765153839531,-946.28,0.00010169,2]
[397157436,1765153839541,-3077.87,0.00010169,2]
[397157438,1765153839551,-5051.04,0.00010169,2]
[397157440,1765153839560,-2887.96,0.00010169,2]
[397157442,1765153839569,-722.55,0.00010169,2]
[397157444,1765153839578,-500.0,0.00010169,2]
[397157446,1765153839587,-1790.75,0.00010169,2]
[397157448,1765153839598,-500.0,0.00010169,2]
[397157451,1765153839608,-500.0,0.00010169,2]
[397157452,1765153839618,-1270.51,0.00010169,2]
[397157454,1765153839627,-1485.81,0.00010169,2]
[397157456,1765153839637,-2424.75,0.00010169,2]
[397157458,1765153839646,-500.0,0.00010169,2]
[397157460,1765153839656,-2080.23,0.00010169,2]
[397157462,1765153839666,-1342.63,0.00010169,2]
[397157464,1765153839676,-950.97,0.00010169,2]
[397157466,1765153839686,-500.0,0.00010169,2]
[397157469,1765153839695,-2675.22,0.00010169,2]
[397157470,1765153839704,-500.0,0.00010169,2]
[397157472,1765153839714,-3831.12317506,0.00010179,2]
[397157475,1765153839723,-2286.59882491,0.00010206,2]
[397157477,1765153839732,-151.0,0.00010226,2]
[397157478,1765153839743,-151.0,0.00010226,2]
[397157481,1765153839752,-151.0,0.00010226,2]
[397157482,1765153839763,-151.0,0.00010226,2]
[397157485,1765153839774,-151.0,0.00010226,2]
[397157487,1765153839783,-151.0,0.00010226,2]
[397157488,1765153839793,-151.0,0.00010226,2]
[397157491,1765153839803,-151.0,0.00010226,2]
[397157493,1765153839812,-151.0,0.00010226,2]
[397157495,1765153839821,-151.0,0.00010226,2]
[397157496,1765153839830,-151.0,0.00010226,2]
[397157499,1765153839839,-151.0,0.00010226,2]
[397157501,1765153839848,-151.0,0.00010226,2]
[397157503,1765153839857,-151.0,0.00010226,2]
[397157505,1765153839867,-151.0,0.00010226,2]
[397157506,1765153839876,-151.0,0.00010226,2]
[397157509,1765153839886,-151.0,0.00010226,2]
[397157510,1765153839895,-151.0,0.00010226,2]
[397157513,1765153839904,-151.0,0.00010226,2]
[397157514,1765153839913,-151.0,0.00010226,2]
[397157517,1765153839923,-154.297,0.00010229,2]
[397157518,1765153839932,-701.93,0.0001023,2]
[397157520,1765153839941,-500.0,0.0001023,2]
[397157522,1765153839951,-500.0,0.0001023,2]
[397157525,1765153839960,-500.0,0.0001023,2]
[397157527,1765153839969,-500.0,0.0001023,2]
[397157528,1765153839978,-500.0,0.0001023,2]
[397157531,1765153839987,-500.0,0.0001023,2]
[397157533,1765153839996,-500.0,0.0001023,2]
[397157534,1765153840005,-652.57,0.0001023,2]
[397157536,1765153840014,-1733.82,0.0001023,2]
[397157538,1765153840023,-500.0,0.0001023,2]
[397157540,1765153840032,-500.0,0.0001023,2]
[397157542,1765153840041,-500.0,0.0001023,2]
[397157544,1765153840050,-500.0,0.0001023,2]
[397157546,1765153840060,-726.34,0.0001023,2]
[397157549,1765153840069,-500.0,0.0001023,2]
[397157551,1765153840079,-500.0,0.0001023,2]
[397157554,1765153840090,-500.0,0.0001023,2]
[397157557,1765153840102,-500.0,0.0001023,2]
[397157560,1765153840111,-744.6,0.0001023,2]
[397157562,1765153840120,-500.0,0.0001023,2]
[397157563,1765153840131,-500.0,0.0001023,2]
[397157565,1765153840140,-655.75,0.0001023,2]
[397157567,1765153840153,-771.57,0.0001023,2]
[397157570,1765153840163,-500.0,0.0001023,2]
[397157572,1765153840176,-684.47,0.0001023,2]
[397157575,1765153840186,-748.63,0.0001023,2]
[397157576,1765153840195,-500.0,0.0001023,2]
[397157578,1765153840204,-500.0,0.0001023,2]
[397157580,1765153840214,-500.0,0.0001023,2]
[397157583,1765153840224,-500.0,0.0001023,2]
[397157585,1765153840233,-500.0,0.0001023,2]
[397157586,1765153840242,-2834.23,0.0001023,2]
[397157589,1765153840252,-500.0,0.0001023,2]
[397157590,1765153840261,-506.0,0.0001023,2]
[397157592,1765153840270,-500.0,0.0001023,2]
[397157594,1765153840280,-1813.48,0.0001023,2]
[397157596,1765153840289,-735.15,0.0001023,2]
[397157598,1765153840299,-500.0,0.0001023,2]
[397157600,1765153840308,-526.43,0.0001023,2]
[397157602,1765153840317,-500.0,0.0001023,2]
[397157604,1765153840326,-500.90463128,0.0001023,2]
[397157606,1765153840336,-501.97441302,0.0001023,2]
[397157608,1765153840345,-500.0,0.0001023,2]
[397157610,1765153840355,-546.45,0.0001023,2]
[397157612,1765153840364,-1230.04,0.0001023,2]
[397157614,1765153840373,-500.0,0.0001023,2]
[397157616,1765153840383,-1263.45,0.0001023,2]
[397157618,1765153840392,-1422.99,0.0001023,2]
[397157620,1765153840401,-651.12,0.0001023,2]
[397157622,1765153840410,-500.0,0.0001023,2]
[397157625,1765153840419,-1203.71,0.0001023,2]
[397157626,1765153840429,-500.0,0.0001023,2]
[397157628,1765153840441,-500.0,0.0001023,2]
[397157631,1765153840452,-1325.07,0.0001023,2]
[397157633,1765153840462,-1564.2,0.0001023,2]
[397157635,1765153840472,-500.0,0.0001023,2]
[397157637,1765153840482,-500.0,0.0001023,2]
[397157639,1765153840492,-1631.85,0.0001023,2]
[397157641,1765153840501,-500.0,0.0001023,2]
[397157642,1765153840515,-169.776845,0.0001023,2]
[397157644,1765153840524,-2670.11,0.0001023,2]
[397157646,1765153840534,-564.14,0.0001023,2]
[397157648,1765153840543,-2211.25,0.0001023,2]
[397157651,1765153840552,-979.13,0.0001023,2]
[397157652,1765153840561,-508.862522,0.0001023,2]
[397157655,1765153840571,-500.0,0.0001023,2]
[397157656,1765153840580,-2381.75,0.0001023,2]
[397157659,1765153840590,-886.02,0.0001023,2]
[397157661,1765153840599,-500.0,0.0001023,2]
[397157663,1765153840608,-3968.89,0.0001023,2]
[397157665,1765153840617,-630.05,0.0001023,2]
[397157666,1765153840627,-609.31,0.0001023,2]
[397157668,1765153840636,-637.93,0.0001023,2]
[397157670,1765153840645,-3624.79,0.0001023,2]
[397157672,1765153840653,-500.0,0.0001023,2]
[397157674,1765153840663,-2236.9,0.0001023,2]
[397157676,1765153840671,-916.03,0.0001023,2]
[397157678,1765153840680,-500.0,0.0001023,2]
[397157680,1765153840689,-500.0,0.0001023,2]
[397157682,1765153840698,-500.0,0.0001023,2]
[397157684,1765153840707,-500.0,0.0001023,2]
[397157686,1765153840716,-500.0,0.0001023,2]
[397157688,1765153840725,-362.44988628,0.0001023,2]
[397157690,1765153840735,-500.0,0.0001023,2]
[397157692,1765153840745,-912.38,0.0001023,2]
[397157694,1765153840754,-500.0,0.0001023,2]
[397157697,1765153840763,-1864.22,0.0001023,2]
[397157699,1765153840773,-1335.69,0.0001023,2]
[397157701,1765153840782,-500.0,0.0001023,2]
[397157703,1765153840791,-1021.74,0.0001023,2]
[397157705,1765153840800,-500.0,0.0001023,2]
[397157707,1765153840809,-500.0,0.0001023,2]
[397157709,1765153840818,-8172.28,0.0001023,2]
[397157711,1765153840827,-500.0,0.0001023,2]
[397157713,1765153840836,-500.0,0.0001023,2]
[397157715,1765153840845,-1999.6,0.0001023,2]
[397157716,1765153840856,-958.09,0.0001023,2]
[397157719,1765153840866,-500.0,0.0001023,2]
[397157721,1765153840875,-808.38,0.0001023,2]
[397157722,1765153840884,-500.0,0.0001023,2]
[397157724,1765153840894,-1557.97,0.0001023,2]
[397157727,1765153840905,-2249.82,0.0001023,2]
[397157729,1765153840915,-500.0,0.0001023,2]
[397157731,1765153840927,-703.19,0.0001023,2]
[397157732,1765153840936,-4417.32,0.0001023,2]
[397157734,1765153840945,-500.0,0.0001023,2]
[397157736,1765153840954,-500.0,0.0001023,2]
[397157738,1765153840963,-685.84,0.0001023,2]
[397157740,1765153840973,-500.0,0.0001023,2]
[397157742,1765153840982,-1535.4,0.0001023,2]
[397157744,1765153840991,-500.0,0.0001023,2]
[397157746,1765153841000,-500.0,0.0001023,2]
[397157749,1765153841010,-500.0,0.0001023,2]
[397157751,1765153841019,-1598.25,0.0001023,2]
[397157753,1765153841028,-500.0,0.0001023,2]
[397157755,1765153841037,-500.0,0.0001023,2]
[397157757,1765153841047,-500.0,0.0001023,2]
[397157759,1765153841056,-1846.53,0.0001023,2]
[397157761,1765153841065,-656.39,0.0001023,2]
[397157762,1765153841074,-500.0,0.0001023,2]
[397157764,1765153841082,-18068.84,0.0001023,2]
[397157766,1765153841092,-1166.43,0.0001023,2]
[397157769,1765153841102,-500.16374382,0.0001023,2]
[397157771,1765153841115,-741.01,0.0001023,2]
[397157773,1765153841123,-500.0,0.0001023,2]
[397157775,1765153841132,-500.0,0.0001023,2]
[397157777,1765153841142,-5101.78,0.0001023,2]
[397157779,1765153841152,-2157.21,0.0001023,2]
[397157781,1765153841163,-5148.16,0.0001023,2]
[397157783,1765153841173,-622.69694345,0.0001023,2]
[397157785,1765153841182,-500.33028642,0.0001023,2]
[397157787,1765153841194,-1750.38,0.0001023,2]
[397157789,1765153841204,-2858.89,0.0001023,2]
[397157791,1765153841213,-1495.21,0.0001023,2]
[397157793,1765153841223,-500.0,0.0001023,2]
[397157795,1765153841232,-500.0,0.0001023,2]
[397157797,1765153841242,-701.75,0.0001023,2]
[397157799,1765153841251,-500.0,0.0001023,2]
[397157801,1765153841261,-500.0,0.0001023,2]
[397157803,1765153841271,-8280.08,0.0001023,2]
[397157805,1765153841280,-500.0,0.0001023,2]
[397157807,1765153841290,-500.0,0.00010232,2]
[397157809,1765153841299,-500.0,0.00010232,2]
[397157811,1765153841308,-500.0,0.00010232,2]
[397157813,1765153841318,-500.0,0.00010232,2]
[397157815,1765153841328,-500.0,0.00010232,2]
[397157816,1765153841337,-500.0,0.00010232,2]
[397157817,1765153841347,-500.0,0.00010232,2]
[397157818,1765153841360,-500.0,0.00010232,2]
[397157819,1765153841369,-759.2,0.00010232,2]
[397157820,1765153841378,-500.0,0.00010232,2]
[397157821,1765153841388,-500.73520658,0.00010232,2]
[397157822,1765153841398,-826.76,0.00010232,2]
[397157823,1765153841407,-500.43011265,0.00010232,2]
[397157824,1765153841416,-500.0,0.00010232,2]
[397157825,1765153841426,-557.04083188,0.00010232,2]
[397157826,1765153841436,-500.0,0.00010232,2]
[397157827,1765153841445,-500.0,0.00010232,2]
[397157828,1765153841454,-500.0,0.00010232,2]
[397157829,1765153841464,-500.78462789,0.00010232,2]
[397157830,1765153841473,-1036.48,0.00010232,2]
[397157831,1765153841482,-500.0,0.00010232,2]
[397157832,1765153841492,-637.97971333,0.00010232,2]
[397157833,1765153841501,-500.0,0.00010232,2]
[397157834,1765153841510,-500.0,0.00010232,2]
[397157835,1765153841520,-500.38193391,0.00010232,2]
[397157836,1765153841529,-500.0,0.00010232,2]
[397157837,1765153841538,-500.71451077,0.00010232,2]
[397157838,1765153841548,-500.0,0.00010232,2]
[397157839,1765153841557,-500.0,0.00010232,2]
[397157840,1765153841566,-500.0,0.00010232,2]
[397157841,1765153841575,-500.0,0.00010232,2]
[397157843,1765153841585,-500.0,0.00010232,2]
[397157845,1765153841593,-500.0,0.00010232,2]
[397157847,1765153841602,-500.0,0.00010232,2]
[397157849,1765153841611,-500.0,0.00010232,2]
[397157851,1765153841621,-500.0,0.00010232,2]
[397157853,1765153841631,-500.0,0.00010232,2]
[397157855,1765153841640,-221.09871954,0.00010232,2]
[397157857,1765153841649,-500.0,0.00010232,2]
[397157859,1765153841659,-500.0,0.00010232,2]
[397157861,1765153841668,-500.0,0.00010232,2]
[397157863,1765153841678,-500.0,0.00010232,2]
[397157865,1765153841687,-1260.24,0.00010232,2]
[397157867,1765153841696,-500.0,0.00010232,2]
[397157869,1765153841706,-500.0,0.00010232,2]
[397157871,1765153841715,-500.0,0.00010232,2]
[397157873,1765153841724,-516.02,0.00010232,2]
[397157875,1765153841733,-500.0,0.00010232,2]
[397157877,1765153841743,-500.0,0.00010232,2]
[397157879,1765153841752,-500.0,0.00010232,2]
[397157881,1765153841761,-500.0,0.00010232,2]
[397157883,1765153841770,-500.0,0.00010232,2]
[397157885,1765153841779,-571.37,0.00010232,2]
[397157887,1765153841788,-500.0,0.00010232,2]
[397157889,1765153841797,-500.0,0.00010232,2]
[397157891,1765153841806,-500.0,0.00010232,2]
[397157893,1765153841815,-433.46492295,0.00010232,2]
[397157895,1765153841824,-500.0,0.00010232,2]
[397157897,1765153841833,-500.0,0.00010232,2]
[397157899,1765153841842,-500.59386681,0.00010232,2]
[397157901,1765153841851,-500.0,0.00010232,2]
[397157903,1765153841861,-534.05,0.00010232,2]
[397157905,1765153841870,-500.0,0.00010232,2]
[397157907,1765153841879,-500.0,0.00010232,2]
[397157909,1765153841888,-659.52,0.00010232,2]
[397157911,1765153841898,-500.0,0.00010232,2]
[397157913,1765153841907,-500.0,0.00010232,2]
[397157915,1765153841917,-990.92,0.00010232,2]
[397157917,1765153841927,-532.12,0.00010232,2]
[397157919,1765153841936,-500.0,0.00010232,2]
[397157921,1765153841945,-500.0,0.00010232,2]
[397157923,1765153841954,-530.45,0.00010232,2]
[397157925,1765153841963,-500.0,0.00010232,2]
[397157927,1765153841972,-500.0,0.00010232,2]
[397157929,1765153841981,-500.0,0.00010232,2]
[397157931,1765153841990,-690.97,0.00010232,2]
[397157933,1765153841999,-500.0,0.00010232,2]
[397157935,1765153842008,-500.0,0.00010232,2]
[397157937,1765153842017,-500.0,0.00010232,2]
[397157939,1765153842027,-555.02,0.00010232,2]
[397157941,1765153842035,-500.0,0.00010232,2]
[397157943,1765153842044,-500.0,0.00010232,2]
[397157945,1765153842054,-500.0,0.00010232,2]
[397157947,1765153842063,-500.0,0.00010232,2]
[397157949,1765153842071,-500.0,0.00010232,2]
[397157951,1765153842081,-625.23651646,0.00010232,2]
[397157953,1765153842090,-500.0,0.00010232,2]
[397157955,1765153842099,-500.0,0.00010232,2]
[397157956,1765153842113,-500.0,0.00010232,2]
[397157959,1765153842122,-500.0,0.00010232,2]
[397157961,1765153842131,-500.0,0.00010232,2]
[397157963,1765153842140,-270.32761289,0.00010232,2]
[397157965,1765153842149,-500.0,0.00010232,2]
[397157967,1765153842158,-500.0,0.00010232,2]
[397157969,1765153842167,-501.02955923,0.00010232,2]
[397157971,1765153842176,-500.0,0.00010232,2]
[397157973,1765153842185,-500.0,0.00010232,2]
[397157974,1765153842194,-500.0,0.00010232,2]
[397157977,1765153842203,-500.0,0.00010232,2]
[397157979,1765153842213,-500.0,0.00010232,2]
[397157981,1765153842222,-1625.29,0.00010232,2]
[397157983,1765153842232,-500.0,0.00010232,2]
[397157985,1765153842241,-500.0,0.00010232,2]
[397157986,1765153842250,-500.0,0.00010232,2]
[397157989,1765153842259,-500.0,0.00010232,2]
[397157990,1765153842268,-500.0,0.00010232,2]
[397157993,1765153842277,-677.6,0.00010232,2]
[397157994,1765153842286,-500.0,0.00010232,2]
[397157996,1765153842296,-878.47,0.00010232,2]
[397157998,1765153842305,-500.0,0.00010232,2]
[397158001,1765153842315,-500.0,0.00010232,2]
[397158003,1765153842325,-500.0,0.00010232,2]
[397158005,1765153842334,-511.68496251,0.00010232,2]
[397158007,1765153842343,-500.0,0.00010232,2]
[397158009,1765153842352,-500.0,0.00010232,2]
[397158010,1765153842361,-500.0,0.00010232,2]
[397158012,1765153842371,-500.0,0.00010232,2]
[397158014,1765153842380,-500.0,0.00010232,2]
[397158016,1765153842389,-500.0,0.00010232,2]
[397158018,1765153842398,-500.0,0.00010232,2]
[397158020,1765153842407,-500.0,0.00010232,2]
[397158022,1765153842416,-500.0,0.00010232,2]
[397158024,1765153842425,-1161.87,0.00010232,2]
[397158026,1765153842435,-500.0,0.00010232,2]
[397158028,1765153842444,-500.0,0.00010232,2]
[397158030,1765153842453,-500.0,0.00010232,2]
[397158032,1765153842463,-512.41439382,0.00010232,2]
[397158034,1765153842472,-732.6,0.00010232,2]
[397158036,1765153842481,-500.0,0.00010232,2]
[397158038,1765153842490,-500.0,0.00010232,2]
[397158040,1765153842499,-500.0,0.00010232,2]
[397158042,1765153842508,-500.0,0.00010232,2]
[397158044,1765153842518,-500.0,0.00010232,2]
[397158046,1765153842528,-520.644804,0.00010232,2]
[397158048,1765153842537,-500.0,0.00010232,2]
[397158050,1765153842547,-500.0,0.00010232,2]
[397158052,1765153842556,-500.0,0.00010232,2]
[397158054,1765153842565,-500.0,0.00010232,2]
[397158056,1765153842575,-500.24393423,0.00010232,2]
[397158058,1765153842585,-500.0,0.00010232,2]
[397158060,1765153842593,-500.0,0.00010232,2]
[397158062,1765153842603,-500.0,0.00010232,2]
[397158064,1765153842612,-500.28993772,0.00010232,2]
[397158066,1765153842621,-700.92,0.00010232,2]
[397158068,1765153842631,-500.0,0.00010232,2]
[397158070,1765153842641,-732.82,0.00010232,2]
[397158072,1765153842650,-751.68,0.00010232,2]
[397158074,1765153842661,-500.0,0.00010232,2]
[397158076,1765153842670,-500.0,0.00010232,2]
[397158079,1765153842680,-500.0,0.00010232,2]
[397158080,1765153842689,-500.0,0.00010232,2]
[397158083,1765153842698,-500.0,0.00010232,2]
[397158085,1765153842708,-500.0,0.00010232,2]
[397158087,1765153842717,-500.0,0.00010232,2]
[397158089,1765153842727,-500.0,0.00010232,2]
[397158091,1765153842736,-500.0,0.00010232,2]
[397158093,1765153842745,-500.0,0.00010232,2]
[397158095,1765153842754,-500.0,0.00010232,2]
[397158096,1765153842765,-500.0,0.00010232,2]
[397158098,1765153842774,-500.0,0.00010232,2]
[397158100,1765153842783,-1482.46,0.00010232,2]
[397158102,1765153842793,-502.21164339,0.00010232,2]
[397158104,1765153842802,-500.0,0.00010232,2]
[397158106,1765153842812,-500.0,0.00010232,2]
[397158108,1765153842821,-500.0,0.00010232,2]
[397158110,1765153842830,-500.0,0.00010232,2]
[397158112,1765153842839,-500.0,0.00010232,2]
[397158114,1765153842848,-500.0,0.00010232,2]
[397158116,1765153842858,-500.0,0.00010232,2]
[397158118,1765153842867,-500.0,0.00010232,2]
[397158120,1765153842876,-500.0,0.00010232,2]
[397158122,1765153842885,-500.19476241,0.00010232,2]
[397158124,1765153842895,-500.0,0.00010232,2]
[397158126,1765153842904,-500.4128939,0.00010232,2]
[397158130,1765153842914,-500.0,0.00010232,2]
[397158132,1765153842923,-500.0,0.00010232,2]
[397158134,1765153842933,-500.0,0.00010232,2]
[397158136,1765153842942,-1481.12,0.00010232,2]
[397158138,1765153842951,-500.0,0.00010232,2]
[397158140,1765153842960,-500.0,0.00010232,2]
[397158142,1765153842970,-500.0,0.00010232,2]
[397158144,1765153842980,-500.0,0.00010232,2]
[397158147,1765153842989,-500.0,0.00010232,2]
[397158149,1765153843000,-500.33938799,0.00010232,2]
[397158152,1765153843009,-738.58,0.00010232,2]
[397158155,1765153843018,-457.59136976,0.00010232,2]
[397158157,1765153843028,-500.0,0.00010232,2]
[397158159,1765153843037,-659.13,0.00010232,2]
[397158162,1765153843046,-500.0,0.00010232,2]
[397158163,1765153843055,-500.0,0.00010232,2]
[397158185,1765153843065,-500.0,0.00010232,2]
[397158188,1765153843251,-500.0,0.00010232,2]
[397158190,1765153843262,-500.0,0.00010232,2]
[397158192,1765153843272,-500.0,0.00010232,2]
[397158194,1765153843281,-500.19832687,0.00010232,2]
[397158196,1765153843290,-500.0,0.00010232,2]
[397158198,1765153843300,-500.0,0.00010232,2]
[397158200,1765153843310,-500.0,0.00010232,2]
[397158202,1765153843321,-500.57304902,0.00010232,2]
[397158204,1765153843331,-500.22472879,0.00010232,2]
[397158206,1765153843340,-500.0,0.00010232,2]
[397158208,1765153843350,-500.54743262,0.00010232,2]
[397158210,1765153843359,-500.0,0.00010232,2]
[397158212,1765153843369,-1205.55,0.00010232,2]
[397158214,1765153843379,-500.86,0.00010232,2]
[397158216,1765153843389,-500.0,0.00010232,2]
[397158218,1765153843398,-500.55470275,0.00010232,2]
[397158220,1765153843407,-500.57811819,0.00010232,2]
[397158222,1765153843417,-500.28559742,0.00010232,2]
[397158224,1765153843426,-1819.74,0.00010232,2]
[397158226,1765153843436,-500.0,0.00010232,2]
[397158228,1765153843445,-295.22900534,0.00010232,2]
[397158230,1765153843455,-500.0,0.00010232,2]
[397158232,1765153843466,-500.0,0.00010232,2]
[397158234,1765153843475,-500.0,0.00010232,2]
[397158236,1765153843487,-744.46,0.00010232,2]
[397158238,1765153843496,-2654.04,0.00010232,2]
[397158240,1765153843506,-500.0,0.00010232,2]
[397158242,1765153843516,-500.0,0.00010232,2]
[397158244,1765153843525,-500.0,0.00010232,2]
[397158246,1765153843534,-813.18,0.00010232,2]
[397158248,1765153843544,-603.26259861,0.00010232,2]
[397158250,1765153843553,-500.0,0.00010232,2]
[397158252,1765153843563,-500.87524583,0.00010232,2]
[397158254,1765153843572,-1896.42,0.00010232,2]
[397158256,1765153843581,-500.14272263,0.00010232,2]
[397158258,1765153843591,-1133.57,0.00010232,2]
[397158260,1765153843600,-500.77114785,0.00010232,2]
[397158262,1765153843610,-500.0,0.00010232,2]
[397158264,1765153843619,-500.0,0.00010232,2]
[397158266,1765153843628,-893.16,0.00010232,2]
[397158268,1765153843639,-500.0,0.00010232,2]
[397158270,1765153843648,-500.0,0.00010232,2]
[397158273,1765153843658,-848.05,0.00010232,2]
[397158275,1765153843668,-1517.48,0.00010232,2]
[397158276,1765153843678,-500.0,0.00010232,2]
[397158279,1765153843687,-675.57,0.00010232,2]
[397158281,1765153843697,-3377.49,0.00010232,2]
[397158283,1765153843713,-13062.21,0.00010232,2]
[397158285,1765153843726,-500.0,0.00010232,2]
[397158286,1765153843735,-794.44,0.00010232,2]
[397158288,1765153843745,-3456.82,0.00010232,2]
[397158291,1765153843755,-500.0,0.00010232,2]
[397158293,1765153843765,-803.78,0.00010232,2]
[397158295,1765153843775,-500.0,0.00010232,2]
[397158297,1765153843784,-500.0,0.00010232,2]
[397158299,1765153843794,-500.0,0.00010232,2]
[397158301,1765153843802,-500.0,0.00010232,2]
[397158303,1765153843812,-500.45130869,0.00010232,2]
[397158305,1765153843822,-26684.44,0.00010232,2]
[397158307,1765153843831,-500.0,0.00010232,2]
[397158309,1765153843840,-553.4,0.00010232,2]
[397158311,1765153843849,-645.97,0.00010232,2]
[397158313,1765153843858,-500.0,0.00010232,2]
[397158314,1765153843868,-1065.68,0.00010232,2]
[397158317,1765153843877,-519.72308307,0.00010232,2]
[397158319,1765153843887,-500.10591703,0.00010232,2]
[397158321,1765153843896,-500.0,0.00010232,2]
[397158323,1765153843905,-500.0,0.00010232,2]
[397158325,1765153843914,-500.0,0.00010232,2]
[397158327,1765153843923,-3772.79,0.00010232,2]
[397158329,1765153843933,-500.0,0.00010232,2]
[397158331,1765153843942,-790.17,0.00010232,2]
[397158333,1765153843952,-1642.19,0.00010232,2]
[397158335,1765153843961,-2889.23,0.00010232,2]
[397158337,1765153843970,-500.0,0.00010232,2]
[397158339,1765153843979,-5268.6,0.00010232,2]
[397158341,1765153843988,-500.0,0.00010232,2]
[397158343,1765153843998,-731.31,0.00010232,2]
[397158345,1765153844008,-500.0,0.00010232,2]
[397158347,1765153844017,-500.0,0.00010232,2]
[397158349,1765153844027,-859.46,0.00010232,2]
[397158351,1765153844037,-402.08668217,0.00010232,2]
[397158353,1765153844048,-500.0,0.00010232,2]
[397158355,1765153844057,-500.0,0.00010232,2]
[397158358,1765153844066,-500.0,0.00010232,2]
[397158360,1765153844075,-731.48,0.00010232,2]
[397158362,1765153844085,-282.68870137,0.00010232,2]
[397158364,1765153844094,-515.13678379,0.00010232,2]
[397158366,1765153844103,-500.0,0.00010232,2]
[397158368,1765153844118,-500.0,0.00010232,2]
[397158370,1765153844128,-500.0,0.00010232,2]